bitfinex-derivatives/quotes_BTCF0:USTF0_20230901
["timestamp","ask_amount","ask_price","bid_price","bid_amount"]
[1693530187535,0.4154,26029.0,26027.0,0.52990149]
[1693530187728,0.4154,26029.0,26028.0,0.11066149]
[1693530188237,0.4354,26029.0,26028.0,0.11066149]
[1693530189938,0.4514,26029.0,26028.0,0.11066149]
[1693530190437,0.4714,26029.0,26028.0,0.11066149]
[1693530191238,0.4354,26029.0,26028.0,0.11066149]
[1693530191437,0.4624,26029.0,26028.0,0.11166149]
[1693530193943,0.4624,26029.0,26028.0,0.05697242]
[1693530194132,0.4624,26029.0,26028.0,0.11166149]
[1693530194431,0.4624,26029.0,26028.0,0.05697242]
[1693530194637,0.4624,26029.0,26028.0,0.11166149]
[1693530209552,0.53894838,26029.0,26028.0,0.001]
[1693530209754,0.59363745,26029.0,26028.0,0.001]
[1693530214353,0.65204131,26029.0,26028.0,0.001]
[1693530217653,0.54080386,26029.0,26028.0,0.05697242]
[1693530217859,0.4424,26029.0,26028.0,0.05697242]
[1693530218357,0.4424,26029.0,26028.0,0.11166149]
[1693530219758,0.4424,26029.0,26028.0,0.18813704]
[1693530220359,0.4424,26029.0,26028.0,0.42834796]
[1693530220657,0.4424,26029.0,26028.0,0.35187241]
[1693530222859,0.4424,26029.0,26028.0,0.42834796]
[1693530223657,0.4424,26029.0,26028.0,0.35187241]
[1693530223964,0.4424,26029.0,26028.0,0.42834796]
[1693530227663,0.4424,26029.0,26028.0,0.59104796]
[1693530228558,0.4424,26029.0,26028.0,0.3893429]
[1693530228955,0.4424,26029.0,26028.0,0.27436149]
[1693530230663,0.4424,26029.0,26028.0,0.68193223]
[1693530233361,0.4424,26029.0,26028.0,0.52859752]
[1693530233562,0.027,26029.0,26028.0,0.94399752]
[1693530235761,0.027,26029.0,26028.0,1.08335337]
[1693530239572,0.027,26029.0,26028.0,0.92995638]
[1693530242667,0.027,26029.0,26028.0,0.68976149]
[1693530243868,0.027,26029.0,26028.0,1.0973808]
[1693530244663,0.027,26029.0,26028.0,0.94398381]
[1693530244969,0.027,26029.0,26028.0,1.13565219]
[1693530245266,0.027,26029.0,26028.0,1.37583187]
[1693530245667,0.027,26029.0,26028.0,1.13565219]
[1693530246360,0.03152275,26031.0,26029.0,0.05468907]
[1693530246555,0.4154,26033.0,26030.0,0.56872698]
[1693530246760,0.4154,26033.0,26032.0,0.11881796]
[1693530247078,0.7974,26036.0,26032.0,0.70322847]
[1693530247369,0.7974,26036.0,26035.0,0.41924]
[1693530247566,0.8278701,26036.0,26035.0,0.60649769]
[1693530247766,0.8278701,26036.0,26035.0,0.76599769]
[1693530247962,0.8278701,26036.0,26035.0,0.78599769]
[1693530248359,0.8618701,26036.0,26035.0,0.78599769]
[1693530248862,0.8638701,26036.0,26035.0,0.76515769]
[1693530249063,1.33581848,26036.0,26035.0,0.1625]
[1693530249262,1.35581848,26036.0,26035.0,0.003]
[1693530250772,1.35381848,26036.0,26035.0,0.003]
[1693530251075,1.40850755,26036.0,26035.0,0.003]
[1693530251565,0.61110755,26036.0,26035.0,0.003]
[1693530251968,0.11123745,26035.0,26031.0,0.0765962]
[1693530252170,0.4154,26032.0,26031.0,0.0765962]
[1693530252568,0.52663745,26032.0,26031.0,0.0765962]
[1693530253774,0.47394838,26032.0,26031.0,0.019]
[1693530254679,0.47994838,26032.0,26031.0,0.001]
[1693530255580,0.53463745,26032.0,26031.0,0.001]
[1693530255781,0.47994838,26032.0,26031.0,0.001]
[1693530256881,0.4234,26032.0,26031.0,0.05697242]
[1693530257083,0.4434,26032.0,26031.0,0.001]
[1693530257286,0.49808907,26032.0,26031.0,0.001]
[1693530257687,0.4434,26032.0,26031.0,0.001]
[1693530258288,0.55463745,26032.0,26031.0,0.001]
[1693530260991,0.49994838,26032.0,26031.0,0.001]
[1693530261392,0.55463745,26032.0,26031.0,0.001]
[1693530263096,0.58567296,26032.0,26031.0,0.001]
[1693530263695,0.56567296,26032.0,26031.0,0.001]
[1693530263898,0.58567296,26032.0,26031.0,0.001]
[1693530264095,0.51098389,26032.0,26031.0,0.11166149]
[1693530264296,0.45443551,26032.0,26031.0,0.05697242]
[1693530264899,0.50912458,26032.0,26031.0,0.001]
[1693530265101,0.56567296,26032.0,26031.0,0.001]
[1693530265699,0.51098389,26032.0,26031.0,0.001]
[1693530265896,0.56567296,26032.0,26031.0,0.001]
[1693530266203,0.94638389,26032.0,26031.0,0.001]
[1693530266900,1.00107296,26032.0,26031.0,0.001]
[1693530272206,0.98107296,26032.0,26031.0,0.001]
[1693530272397,1.00107296,26032.0,26031.0,0.001]
[1693530273305,0.98107296,26032.0,26031.0,0.001]
[1693530273603,1.00107296,26032.0,26031.0,0.001]
[1693530275095,0.98107296,26032.0,26031.0,0.001]
[1693530287911,0.56567296,26032.0,26031.0,0.001]
[1693530288111,0.51098389,26032.0,26031.0,0.001]
[1693530290303,0.51098389,26032.0,26031.0,0.05568907]
[1693530290612,0.51098389,26032.0,26031.0,0.001]
[1693530291212,0.56567296,26032.0,26031.0,0.001]
[1693530291909,0.56567296,26032.0,26031.0,0.1623]
[1693530292713,0.51098389,26032.0,26031.0,0.1623]
[1693530295917,0.51098389,26032.0,26031.0,0.2388962]
[1693530299117,0.45443551,26032.0,26031.0,0.2388962]
[1693530300114,0.45443551,26032.0,26031.0,0.0775962]
[1693530300319,0.86983551,26032.0,26031.0,0.0775962]
[1693530301217,1.06154877,26032.0,26031.0,0.0775962]
[1693530301417,1.17278622,26032.0,26031.0,0.0775962]
[1693530302319,1.17278622,26032.0,26031.0,0.001]
[1693530305224,0.11123745,26031.0,26029.0,0.2292962]
[1693530305425,0.4154,26030.0,26029.0,0.2292962]
[1693530305922,0.52663745,26030.0,26029.0,0.2292962]
[1693530307426,0.52663745,26030.0,26029.0,0.2482962]
[1693530307621,0.52663745,26030.0,26029.0,0.0955962]
[1693530307622,0.54663745,26030.0,26029.0,0.0955962]
[1693530307822,0.54863745,26030.0,26028.0,0.11494732]
[1693530308018,0.52663745,26029.0,26027.0,0.11494732]
[1693530308324,0.4154,26028.0,26027.0,0.11494732]
[1693530308520,0.52663745,26028.0,26027.0,0.11494732]
[1693530310721,0.52663745,26028.0,26026.0,0.28054732]
[1693530310920,0.52663745,26027.0,26026.0,0.28054732]
[1693530311120,0.52663745,26027.0,26026.0,0.1656]
[1693530311527,0.47194838,26027.0,26026.0,0.1656]
[1693530312118,0.55263745,26027.0,26026.0,0.1666]
[1693530318520,0.4414,26027.0,26026.0,0.27726149]
[1693530318726,0.4414,26027.0,26026.0,0.22257242]
[1693530319237,0.49608907,26027.0,26026.0,0.1666]
[1693530319734,0.55263745,26027.0,26026.0,0.1666]
[1693530320033,0.49794838,26027.0,26026.0,0.1666]
[1693530320836,0.55263745,26027.0,26026.0,0.1666]
[1693530321026,0.49794838,26027.0,26026.0,0.1666]
[1693530321537,0.55263745,26027.0,26026.0,0.1666]
[1693530321837,0.49794838,26027.0,26026.0,0.1666]
[1693530322336,0.55263745,26027.0,26026.0,0.1666]
[1693530323427,0.58314417,26027.0,26026.0,0.1666]
[1693530325838,0.64070939,26027.0,26026.0,0.1666]
[1693530334135,0.64070939,26027.0,26023.0,0.11878732]
[1693530334136,0.11123745,26026.0,26023.0,0.11878732]
[1693530334334,0.54947194,26027.0,26023.0,0.27848732]
[1693530334335,0.4154,26024.0,26023.0,0.27848732]
[1693530334935,0.52663745,26024.0,26023.0,0.27848732]
[1693530335136,0.52663745,26024.0,26023.0,0.27464732]
[1693530336036,0.52863745,26024.0,26023.0,0.28464732]
[1693530336443,0.52863745,26024.0,26023.0,0.17354]
[1693530336744,0.52863745,26024.0,26023.0,0.28464732]
[1693530337639,0.52663745,26024.0,26023.0,0.27464732]
[1693530337842,0.53963745,26024.0,26023.0,0.27664732]
[1693530338043,0.95503745,26024.0,26023.0,0.27664732]
[1693530338343,0.96903745,26024.0,26023.0,0.27564732]
[1693530340739,0.96903745,26024.0,26022.0,0.11494732]
[1693530340940,0.68343745,26023.0,26021.0,0.26494732]
[1693530341151,0.4154,26022.0,26021.0,0.26494732]
[1693530341455,0.52663745,26022.0,26021.0,0.26494732]
[1693530342455,0.52663745,26022.0,26021.0,0.26694732]
[1693530344149,0.52763745,26022.0,26021.0,0.26694732]
[1693530344550,0.54763745,26022.0,26021.0,0.11494732]
[1693530344850,0.56063745,26022.0,26021.0,0.11594732]
[1693530346556,0.54063745,26022.0,26021.0,0.11594732]
[1693530348159,0.54063745,26022.0,26021.0,0.24127074]
[1693530352956,0.59951361,26022.0,26021.0,0.24127074]
[1693530354357,0.54482454,26022.0,26021.0,0.29595981]
[1693530354555,0.4294,26022.0,26021.0,0.31595981]
[1693530354959,0.4294,26022.0,26021.0,0.37193223]
[1693530355160,0.4294,26022.0,26021.0,0.35193223]
[1693530355463,0.4294,26022.0,26021.0,0.11166149]
[1693530356165,0.4294,26022.0,26021.0,0.22660881]
[1693530356557,0.4294,26022.0,26021.0,0.24660881]
[1693530356752,0.014,26022.0,26021.0,0.94062759]
[1693530356960,0.014,26022.0,26021.0,1.19489443]
[1693530357858,0.014,26022.0,26021.0,1.04156745]
[1693530360463,0.014,26022.0,26021.0,1.23323583]
[1693530363258,0.014,26022.0,26021.0,1.19504081]
[1693530368167,0.030842,26024.0,26023.0,0.00384]
[1693530368368,0.7974,26029.0,26023.0,1.40890684]
[1693530368669,0.4154,26030.0,26028.0,0.4154]
[1693530368860,0.4154,26030.0,26029.0,0.52606149]
[1693530369054,0.44617938,26030.0,26029.0,0.47137242]
[1693530369254,0.44617938,26030.0,26029.0,0.52606149]
[1693530370965,0.47017938,26030.0,26029.0,0.52606149]
[1693530371366,0.44617938,26030.0,26029.0,0.52606149]
[1693530371566,0.47017938,26030.0,26029.0,0.52906149]
[1693530376973,0.47017938,26030.0,26029.0,0.11366149]
[1693530377566,0.52672776,26030.0,26029.0,0.05768907]
[1693530378174,0.52672776,26030.0,26029.0,0.11366149]
[1693530378671,0.47017938,26030.0,26029.0,0.11366149]
[1693530378975,0.47017938,26030.0,26029.0,0.05768907]
[1693530379565,0.52672776,26030.0,26029.0,0.05768907]
[1693530382078,0.47017938,26030.0,26029.0,0.05768907]
[1693530382277,0.52672776,26030.0,26029.0,0.05768907]
[1693530382880,0.52672776,26030.0,26029.0,0.11366149]
[1693530383177,0.47017938,26030.0,26029.0,0.11366149]
[1693530393281,0.47017938,26030.0,26029.0,0.05768907]
[1693530394683,0.52672776,26030.0,26029.0,0.05768907]
[1693530395790,0.47017938,26030.0,26029.0,0.05768907]
[1693530396990,0.52672776,26030.0,26029.0,0.05768907]
[1693530397193,0.52672776,26030.0,26029.0,0.11366149]
[1693530398698,0.47017938,26030.0,26029.0,0.11366149]
[1693530401703,0.47017938,26030.0,26029.0,0.05768907]
[1693530401903,0.52672776,26030.0,26029.0,0.05768907]
[1693530403209,0.47017938,26030.0,26029.0,0.35385455]
[1693530408104,0.47017938,26030.0,26029.0,0.11366149]
[1693530413113,0.47017938,26030.0,26029.0,0.2287295]
[1693530414117,0.47017938,26030.0,26029.0,0.11366149]
[1693530415513,0.6622325,26030.0,26029.0,0.11366149]
[1693530416315,0.6622325,26030.0,26029.0,0.35385529]
[1693530423327,0.6622325,26030.0,26029.0,0.11366149]
[1693530423517,0.47017938,26030.0,26029.0,0.52130464]
[1693530426223,0.47017938,26030.0,26029.0,1.21512661]
[1693530426224,0.05477938,26030.0,26029.0,1.21512661]
[1693530428927,0.05477938,26030.0,26029.0,0.97494901]
[1693530430823,0.05477938,26030.0,26029.0,0.78328063]
[1693530434025,0.60141683,26030.0,26029.0,0.41071812]
[1693530434227,0.60141683,26030.0,26029.0,0.11814748]
[1693530434426,0.60141683,26030.0,26029.0,0.07977357]
[1693530434820,0.76071683,26030.0,26029.0,0.07977357]
[1693530435034,0.76071683,26030.0,26029.0,0.003]
[1693530439426,0.70602776,26030.0,26029.0,0.003]
[1693530440230,0.76071683,26030.0,26029.0,0.003]
[1693530442236,0.74071683,26030.0,26029.0,0.003]
[1693530442440,0.76071683,26030.0,26029.0,0.003]
[1693530444839,0.70602776,26030.0,26029.0,0.003]
[1693530445437,0.76071683,26030.0,26029.0,0.003]
[1693530446935,0.74071683,26030.0,26029.0,0.003]
[1693530456649,0.68602776,26030.0,26029.0,0.003]
[1693530457559,0.74071683,26030.0,26029.0,0.003]
[1693530458160,0.68602776,26030.0,26029.0,0.003]
[1693530458364,0.62947938,26030.0,26029.0,0.023]
[1693530458863,0.62947938,26030.0,26029.0,0.13366149]
[1693530460763,0.62947938,26030.0,26029.0,0.21043506]
[1693530467375,0.62947938,26030.0,26029.0,0.21032099]
[1693530468565,0.62947938,26030.0,26029.0,0.19032099]
[1693530468761,0.62947938,26030.0,26029.0,0.13366149]
[1693530469176,0.05477938,26030.0,26029.0,0.60572099]
[1693530469377,0.024,26030.0,26029.0,0.78923795]
[1693530472780,0.024,26030.0,26029.0,0.9041539]
[1693530473176,0.024,26030.0,26029.0,0.78923795]
[1693530473770,0.024,26030.0,26029.0,0.90415026]
[1693530474579,0.024,26030.0,26029.0,0.90415236]
[1693530475874,0.024,26030.0,26029.0,0.95646991]
[1693530477380,0.024,26030.0,26029.0,0.93646991]
[1693530477682,0.024,26030.0,26029.0,0.95646991]
[1693530478084,0.024,26030.0,26029.0,0.70228071]
[1693530478277,0.024,26030.0,26029.0,0.54906149]
[1693530479575,0.024,26030.0,26029.0,0.95647392]
[1693530481187,0.024,26030.0,26029.0,0.93647392]
[1693530481484,0.024,26030.0,26029.0,0.95647392]
[1693530481688,0.024,26030.0,26029.0,0.93647392]
[1693530490901,0.024,26030.0,26029.0,0.6439739]
[1693530491397,0.024,26030.0,26029.0,0.88414651]
[1693530494785,0.024,26030.0,26029.0,0.7692341]
[1693530498097,0.024,26030.0,26029.0,1.17665543]
[1693530498503,0.024,26030.0,26029.0,0.93648282]
[1693530498998,0.024,26030.0,26029.0,1.17665753]
[1693530499803,0.024,26030.0,26029.0,1.02343831]
[1693530500297,0.024,26030.0,26029.0,1.17673513]
[1693530500701,0.024,26030.0,26029.0,1.02343831]
[1693530503812,0.51594838,26030.0,26029.0,0.41056322]
[1693530504103,0.51594838,26030.0,26029.0,0.11805092]
[1693530504400,0.57063745,26030.0,26029.0,0.11475092]
[1693530505196,0.58263745,26030.0,26029.0,0.11475092]
[1693530505488,0.58263745,26030.0,26027.0,0.15336111]
[1693530505802,0.4154,26028.0,26027.0,0.15336111]
[1693530506107,0.4154,26028.0,26026.0,0.39356684]
[1693530506301,0.62814838,26027.0,26026.0,0.15336111]
[1693530506596,0.64814838,26027.0,26026.0,0.39356642]
[1693530506802,0.64814838,26027.0,26026.0,0.64779971]
[1693530506995,0.64814838,26027.0,26026.0,0.70248878]
[1693530507196,0.5916,26027.0,26026.0,0.64779971]
[1693530507895,0.5916,26027.0,26026.0,0.70248878]
[1693530508487,0.5986,26027.0,26026.0,0.70248878]
[1693530509301,0.63514838,26027.0,26026.0,0.70248878]
[1693530509504,0.65514838,26027.0,26026.0,0.64779971]
[1693530510406,0.63514838,26027.0,26026.0,0.64779971]
[1693530511903,0.63514838,26027.0,26026.0,0.70248878]
[1693530512904,0.63514838,26027.0,26026.0,0.54912767]
[1693530513208,0.63514838,26027.0,26026.0,0.4944386]
[1693530513395,0.5786,26027.0,26026.0,0.54912767]
[1693530513595,0.5786,26027.0,26026.0,0.31020571]
[1693530514005,0.5786,26027.0,26026.0,0.25423329]
[1693530514195,0.5786,26027.0,26025.0,0.19152402]
[1693530514399,0.4154,26026.0,26025.0,0.24621309]
[1693530514604,0.4154,26026.0,26025.0,0.74065034]
[1693530514897,0.4154,26026.0,26025.0,0.79662276]
[1693530515702,0.4154,26026.0,26025.0,0.68596127]
[1693530516203,0.47194838,26026.0,26025.0,0.74065034]
[1693530516402,0.47194838,26026.0,26025.0,0.68596127]
[1693530516608,0.47394838,26026.0,26025.0,0.68596127]
[1693530517005,0.47394838,26026.0,26025.0,0.74065034]
[1693530518103,0.47394838,26026.0,26025.0,0.68596127]
[1693530518708,0.47394838,26026.0,26025.0,0.25423329]
[1693530519299,0.47394838,26026.0,26024.0,0.44575731]
[1693530519499,0.002,26026.0,26025.0,0.25423329]
[1693530519799,0.47394838,26026.0,26025.0,0.25423329]
[1693530520002,0.47394838,26026.0,26024.0,0.44575731]
[1693530520201,0.4154,26025.0,26024.0,0.50044638]
[1693530520409,0.4154,26025.0,26024.0,0.74065754]
[1693530520711,0.47194838,26025.0,26024.0,0.74065754]
[1693530521712,0.47494838,26025.0,26024.0,0.74065754]
[1693530523912,0.4184,26025.0,26024.0,0.74065754]
[1693530525813,0.47494838,26025.0,26024.0,0.74065754]
[1693530526812,0.4184,26025.0,26024.0,0.79662996]
[1693530528207,0.4184,26025.0,26024.0,0.60510594]
[1693530530913,0.4184,26025.0,26024.0,0.49444445]
[1693530531099,0.4384,26025.0,26024.0,0.24021116]
[1693530531614,0.54963745,26025.0,26024.0,0.24021116]
[1693530533106,0.55363745,26025.0,26024.0,0.24021116]
[1693530534815,0.58446476,26025.0,26024.0,0.24021116]
[1693530535410,0.47322731,26025.0,26024.0,0.35087265]
[1693530536116,0.54277569,26025.0,26024.0,0.15330742]
[1693530536517,0.52277569,26025.0,26024.0,0.15330742]
[1693530536712,0.52977569,26025.0,26024.0,0.15330742]
[1693530536912,0.56446476,26025.0,26024.0,0.15330742]
[1693530537112,0.58446476,26025.0,26024.0,0.15330742]
[1693530537312,0.56446476,26025.0,26024.0,0.15330742]
[1693530537615,0.58446476,26025.0,26024.0,0.15330742]
[1693530538019,0.52977569,26025.0,26024.0,0.15330742]
[1693530538216,0.58446476,26025.0,26024.0,0.15330742]
[1693530538816,0.52977569,26025.0,26024.0,0.40756291]
[1693530539820,0.52977569,26025.0,26024.0,0.40756278]
[1693530540317,0.47322731,26025.0,26024.0,0.46225185]
[1693530540518,0.45322731,26025.0,26024.0,0.46225185]
[1693530541216,0.45322731,26025.0,26024.0,0.20799649]
[1693530541723,0.45322731,26025.0,26024.0,0.15330742]
[1693530541914,0.45322731,26025.0,26024.0,0.40756323]
[1693530542118,0.45322731,26025.0,26024.0,0.15330742]
[1693530542320,0.50791638,26025.0,26024.0,0.15330742]
[1693530542624,0.56446476,26025.0,26024.0,0.15330742]
[1693530542825,0.50977569,26025.0,26024.0,0.15330742]
[1693530543118,0.56446476,26025.0,26024.0,0.24022637]
[1693530543318,0.50977569,26025.0,26024.0,0.24022637]
[1693530545221,0.56446476,26025.0,26024.0,0.24022637]
[1693530545419,0.50977569,26025.0,26024.0,0.24022637]
[1693530546316,0.56446476,26025.0,26024.0,0.24022637]
[1693530547415,0.50977569,26025.0,26024.0,0.29619879]
[1693530547622,0.45322731,26025.0,26024.0,0.29619879]
[1693530548227,0.45322731,26025.0,26024.0,0.35088786]
[1693530548730,0.46622731,26025.0,26024.0,0.35088786]
[1693530551130,0.46622731,26025.0,26024.0,0.11066149]
[1693530551325,0.46622731,26025.0,26024.0,0.26396891]
[1693530551626,0.46622731,26025.0,26024.0,0.51823538]
[1693530553528,0.52277569,26025.0,26024.0,0.40757389]
[1693530555031,0.46622731,26025.0,26024.0,0.46226296]
[1693530555341,0.46622731,26025.0,26024.0,0.40757389]
[1693530555933,0.46622731,26025.0,26024.0,0.51823538]
[1693530558133,0.46622731,26025.0,26024.0,0.75847077]
[1693530558327,0.46622731,26025.0,26024.0,0.35089688]
[1693530558833,0.46622731,26025.0,26024.0,0.29620781]
[1693530559823,0.46622731,26025.0,26024.0,0.44951523]
[1693530560124,0.46622731,26025.0,26024.0,0.44823188]
[1693530560330,0.52277569,26025.0,26024.0,0.39354281]
[1693530560732,0.52277569,26025.0,26024.0,0.44823188]
[1693530561026,0.52277569,26025.0,26024.0,0.39354281]
[1693530561231,0.46622731,26025.0,26024.0,0.44823188]
[1693530561434,0.46622731,26025.0,26024.0,0.29492446]
[1693530561835,0.46622731,26025.0,26024.0,0.5042043]
[1693530563436,0.46622731,26025.0,26024.0,0.44951523]
[1693530563832,0.46622731,26025.0,26024.0,0.70378034]
[1693530564532,0.46622731,26025.0,26024.0,0.75846941]
[1693530564734,0.46622731,26025.0,26024.0,0.70378034]
[1693530565036,0.46622731,26025.0,26024.0,0.75846941]
[1693530565947,0.46622731,26025.0,26024.0,0.5042043]
[1693530566324,0.46622731,26025.0,26024.0,0.70378244]
[1693530566530,0.46622731,26025.0,26024.0,0.75847151]
[1693530569738,0.52277569,26025.0,26024.0,0.4945026]
[1693530569941,0.4154,26024.0,26017.0,0.22982883]
[1693530570144,0.5911,26024.0,26018.0,0.39666674]
[1693530570343,0.7514,26024.0,26019.0,0.494564]
[1693530570545,0.7514,26024.0,26020.0,0.494564]
[1693530570742,0.4154,26021.0,26018.0,0.1564]
[1693530570943,0.7514,26024.0,26019.0,0.4945658]
[1693530571142,0.5711,26020.0,26018.0,0.1564]
[1693530571347,0.21224838,26020.0,26019.0,0.49456566]
[1693530571642,0.62764838,26020.0,26019.0,0.49456566]
[1693530572439,0.5751,26020.0,26019.0,0.49456566]
[1693530572746,0.5751,26020.0,26019.0,0.52356566]
[1693530572948,0.5741,26020.0,26019.0,0.52356566]
[1693530573149,0.5741,26020.0,26019.0,0.57825473]
[1693530573347,0.5741,26020.0,26019.0,0.52356566]
[1693530573655,0.5741,26020.0,26019.0,0.57953808]
[1693530574348,0.5741,26020.0,26019.0,0.52356566]
[1693530574839,0.63064838,26020.0,26019.0,0.52356566]
[1693530575347,0.5741,26020.0,26019.0,0.52356566]
[1693530575648,0.5741,26020.0,26019.0,0.63422715]
[1693530575948,0.5741,26020.0,26019.0,0.57953808]
[1693530576149,0.5741,26020.0,26019.0,0.63422715]
[1693530576447,0.5741,26020.0,26019.0,0.57953808]
[1693530576648,0.5741,26020.0,26019.0,0.63422715]
[1693530577151,0.5741,26020.0,26019.0,0.57953808]
[1693530577445,0.63064838,26020.0,26019.0,0.52356566]
[1693530577648,0.63064838,26020.0,26019.0,0.28329864]
[1693530578050,0.68533745,26020.0,26019.0,0.28329864]
[1693530580037,0.68533745,26020.0,26019.0,0.029]
[1693530580648,0.68533745,26020.0,26019.0,0.26927503]
[1693530581352,0.71579276,26020.0,26019.0,0.26927503]
[1693530581551,0.71579276,26020.0,26019.0,0.029]
[1693530581854,0.71579276,26020.0,26019.0,0.26927793]
[1693530584753,0.66110369,26020.0,26019.0,0.26927793]
[1693530585055,0.65924438,26020.0,26019.0,0.26927793]
[1693530586053,0.66110369,26020.0,26019.0,0.26927793]
[1693530586254,0.71579276,26020.0,26019.0,0.26927793]
[1693530588959,0.71579276,26020.0,26019.0,0.029]
[1693530591464,1.3154,26016.0,26015.0,0.19173436]
[1693530591755,0.3,26013.0,26011.0,0.19173436]
[1693530591961,0.52663745,26012.0,26011.0,0.21173436]
[1693530592354,0.68663745,26012.0,26011.0,0.68639714]
[1693530592553,0.68663745,26012.0,26011.0,0.70639714]
[1693530593260,0.68663745,26012.0,26011.0,0.49466278]
[1693530593462,0.4154,26012.0,26011.0,0.49466278]
[1693530593760,0.4154,26012.0,26011.0,0.70639714]
[1693530594261,0.4154,26012.0,26011.0,0.81705863]
[1693530594561,0.4174,26012.0,26011.0,0.85405863]
[1693530594770,0.4174,26012.0,26011.0,0.66232427]
[1693530595060,0.4214,26012.0,26011.0,0.66232427]
[1693530595361,0.4214,26012.0,26011.0,0.64232427]
[1693530595564,0.4214,26012.0,26011.0,0.5876352]
[1693530596263,0.4214,26012.0,26011.0,0.64232427]
[1693530600065,0.4214,26012.0,26011.0,0.74081066]
[1693530600370,0.47794838,26012.0,26011.0,0.68483824]
[1693530600760,0.47794838,26012.0,26011.0,0.5411511]
[1693530600960,0.4214,26012.0,26011.0,0.5411511]
[1693530601162,0.45167674,26012.0,26011.0,0.5411511]
[1693530601465,0.45167674,26012.0,26011.0,0.27731415]
[1693530601766,0.45167674,26012.0,26011.0,0.38797564]
[1693530602070,0.61537674,26012.0,26011.0,0.38797564]
[1693530602365,0.61537674,26012.0,26011.0,0.33328657]
[1693530602758,0.61537674,26012.0,26011.0,0.27731415]
[1693530602959,0.67192512,26012.0,26011.0,0.27731415]
[1693530604967,0.67192512,26012.0,26011.0,0.33200322]
[1693530605367,0.61537674,26012.0,26011.0,0.38797564]
[1693530605569,0.61537674,26012.0,26011.0,0.33328657]
[1693530606072,0.61537674,26012.0,26011.0,0.38797564]
[1693530606267,0.61537674,26012.0,26011.0,0.33328657]
[1693530606468,0.67192512,26012.0,26011.0,0.27731415]
[1693530606769,0.61537674,26012.0,26011.0,0.27731415]
[1693530606973,0.72661419,26012.0,26011.0,0.27731415]
[1693530609475,0.61537674,26012.0,26011.0,0.27731415]
[1693530609975,0.61637674,26012.0,26011.0,0.27731415]
[1693530610169,0.61637674,26012.0,26011.0,0.38797564]
[1693530610369,0.45267674,26012.0,26011.0,0.38797564]
[1693530614773,0.45267674,26012.0,26011.0,0.5411511]
[1693530615680,0.45267674,26012.0,26011.0,0.79550773]
[1693530620480,0.45267674,26012.0,26011.0,0.55533361]
[1693530620781,0.45267674,26012.0,26011.0,0.7956543]
[1693530622686,0.45267674,26012.0,26011.0,0.64233761]
[1693530623290,0.3,26019.0,26012.0,0.11066149]
[1693530623487,0.3,26019.0,26017.0,0.07667415]
[1693530623488,0.1588,26018.0,26017.0,0.07667415]
[1693530623787,0.4154,26018.0,26017.0,0.42765633]
[1693530623987,0.5742,26018.0,26017.0,0.42765947]
[1693530624681,0.5762,26018.0,26017.0,0.43065947]
[1693530626193,0.5762,26018.0,26017.0,0.19033878]
[1693530626886,0.5762,26018.0,26017.0,0.20133878]
[1693530627190,0.5762,26018.0,26017.0,0.14664971]
[1693530627589,0.5762,26018.0,26017.0,0.20133878]
[1693530627993,0.5762,26018.0,26017.0,0.12466149]
[1693530628887,0.5762,26018.0,26017.0,0.06997242]
[1693530629088,0.5762,26018.0,26017.0,0.12466149]
[1693530630096,0.5762,26018.0,26017.0,0.23973781]
[1693530631498,0.5762,26018.0,26017.0,0.18504874]
[1693530632100,0.5762,26018.0,26017.0,0.23973781]
[1693530633386,0.5762,26018.0,26017.0,0.48003856]
[1693530633591,0.5762,26018.0,26017.0,0.36496224]
[1693530633792,0.5762,26018.0,26017.0,0.48003856]
[1693530641504,0.5762,26018.0,26017.0,0.23973781]
[1693530645507,0.5762,26018.0,26017.0,0.18504874]
[1693530645707,0.5762,26018.0,26017.0,0.23973781]
[1693530648708,0.5762,26018.0,26017.0,0.48004139]
[1693530649713,0.4174,26018.0,26017.0,0.77264214]
[1693530653312,0.002,26018.0,26017.0,1.18804214]
[1693530656713,0.002,26018.0,26017.0,1.03468755]
[1693530656914,0.002,26018.0,26017.0,1.18816002]
[1693530657815,0.002,26018.0,26017.0,1.03468755]
[1693530658016,0.002,26018.0,26017.0,1.18816267]
[1693530659813,0.002,26018.0,26017.0,1.03468755]
[1693530665217,0.002,26018.0,26017.0,1.22638079]
[1693530671825,0.002,26018.0,26017.0,0.98607721]
[1693530672024,0.002,26018.0,26017.0,1.22636582]
[1693530675525,0.002,26018.0,26017.0,1.03467137]
[1693530675722,0.002,26018.0,26017.0,1.22663726]
[1693530689845,0.002,26018.0,26017.0,1.03467137]
[1693530690743,0.002,26018.0,26017.0,1.22663726]
[1693530694841,0.002,26018.0,26017.0,1.03467137]
[1693530698739,0.002,26018.0,26017.0,1.05467137]
[1693530701350,0.002,26018.0,26017.0,1.24675909]
[1693530704055,0.002,26018.0,26017.0,1.22675909]
[1693530708448,0.002,26018.0,26017.0,1.03467137]
[1693530720970,0.002,26018.0,26017.0,1.22681725]
[1693530723572,0.002,26018.0,26017.0,1.03467137]
[1693530725166,0.03036968,26019.0,26018.0,0.11066149]
[1693530725368,0.1541,26020.0,26018.0,0.91000988]
[1693530725564,0.1541,26020.0,26019.0,0.91000988]
[1693530725763,0.18507341,26020.0,26019.0,1.02067137]
[1693530727284,0.20307341,26020.0,26019.0,1.02167137]
[1693530728271,0.20307341,26020.0,26019.0,1.21465444]
[1693530728272,0.21707341,26020.0,26019.0,1.21465444]
[1693530731063,0.1521,26024.0,26019.0,1.59877294]
[1693530731266,0.1521,26024.0,26021.0,0.15353598]
[1693530731267,0.1663,26023.0,26021.0,0.15353598]
[1693530731472,1.2128,26026.0,26023.0,0.00384]
[1693530731671,0.1525,26025.0,26023.0,0.4116037]
[1693530731975,0.4154,26026.0,26025.0,0.4154]
[1693530732273,0.4154,26026.0,26025.0,0.49212119]
[1693530732471,0.4154,26026.0,26025.0,0.60278268]
[1693530733164,0.44574736,26026.0,26025.0,0.60278268]
[1693530733872,0.48174736,26026.0,26025.0,0.60478268]
[1693530734366,0.44574736,26026.0,26025.0,0.60478268]
[1693530734574,0.48174736,26026.0,26025.0,0.60478268]
[1693530735077,0.49574736,26026.0,26025.0,0.60778268]
[1693530736162,0.45974736,26026.0,26025.0,0.60778268]
[1693530736365,0.49574736,26026.0,26025.0,0.60778268]
[1693530737079,0.08034736,26026.0,26025.0,0.60778268]
[1693530738276,0.08034736,26026.0,26025.0,0.53106149]
[1693530747284,0.05,26026.0,26025.0,0.53106149]